fUSD/lending_fUSD_20240409
["ID","MTS","AMOUNT","RATE_DAILY","PERIOD"]
[322000438,1712679038388,-500.0,0.00020273,2]
[322000440,1712679038397,-500.0,0.00020273,2]
[322000442,1712679038407,-500.0,0.00020273,2]
[322000444,1712679038416,-500.0,0.00020273,2]
[322000446,1712679038426,-3126.09,0.00020273,2]
[322000448,1712679038435,-500.0,0.00020273,2]
[322000451,1712679038446,-665.84,0.00020273,2]
[322000452,1712679038454,-1607.35,0.00020273,2]
[322000454,1712679038464,-500.0,0.00020273,2]
[322000457,1712679038475,-768.22,0.00020273,2]
[322000464,1712679038540,-624.95,0.00020273,2]
[322000466,1712679038549,-908.09,0.00020273,2]
[322000468,1712679038558,-500.0,0.00020273,2]
[322000470,1712679038568,-1138.52,0.00020273,2]
[322000472,1712679038577,-500.0,0.00020273,2]
[322000474,1712679038587,-2538.08,0.00020273,2]
[322000476,1712679038596,-1358.03,0.00020273,2]
[322000478,1712679038606,-877.67,0.00020273,2]
[322000480,1712679038616,-687.56,0.00020273,2]
[322000482,1712679038624,-1488.04,0.00020273,2]
[322000484,1712679038634,-971.84,0.00020273,2]
[322000486,1712679038643,-1161.78,0.00020273,2]
[322000488,1712679038652,-500.0,0.00020273,2]
[322000490,1712679038661,-1093.14,0.00020273,2]
[322000492,1712679038670,-4212.49,0.00020273,2]
[322000494,1712679038680,-500.0,0.00020273,2]
[322000496,1712679038688,-771.53,0.00020273,2]
[322000498,1712679038698,-943.54,0.00020273,2]
[322000501,1712679038708,-906.15,0.00020273,2]
[322000502,1712679038717,-500.0,0.00020273,2]
[322000504,1712679038727,-500.0,0.00020273,2]
[322000506,1712679038736,-500.0,0.00020273,2]
[322000508,1712679038746,-812.14,0.00020273,2]
[322000511,1712679038755,-500.0,0.00020273,2]
[322000512,1712679038765,-1238.17,0.00020273,2]
[322000515,1712679038774,-500.0,0.00020273,2]
[322000517,1712679038783,-756.29,0.00020273,2]
[322000519,1712679038793,-13148.44,0.00020273,2]
[322000520,1712679038803,-500.0,0.00020273,2]
[322000522,1712679038812,-2186.99,0.00020273,2]
[322000524,1712679038822,-2956.31,0.00020273,2]
[322000527,1712679038831,-1571.51,0.00020273,2]
[322000529,1712679038841,-500.0,0.00020273,2]
[322000530,1712679038850,-940.96,0.00020273,2]
[322000532,1712679038859,-500.0,0.00020273,2]
[322000535,1712679038869,-1827.09,0.00020273,2]
[322000537,1712679038878,-528.83,0.00020273,2]
[322000539,1712679038887,-500.0,0.00020273,2]
[322000541,1712679038897,-1461.13,0.00020273,2]
[322000543,1712679038909,-4206.05,0.00020273,2]
[322000545,1712679038918,-1772.99,0.00020273,2]
[322000547,1712679038928,-500.0,0.00020273,2]
[322000549,1712679038938,-500.0,0.00020273,2]
[322000551,1712679038947,-500.0,0.00020273,2]
[322000553,1712679038956,-500.0,0.00020273,2]
[322000555,1712679038965,-11527.02,0.00020273,2]
[322000557,1712679038975,-2906.55,0.00020273,2]
[322000559,1712679038984,-500.0,0.00020273,2]
[322000561,1712679038994,-1211.1,0.00020273,2]
[322000563,1712679039002,-500.0,0.00020273,2]
[322000565,1712679039014,-3002.38,0.00020273,2]
[322000567,1712679039023,-1001.59,0.00020273,2]
[322000569,1712679039032,-1187.63,0.00020273,2]
[322000571,1712679039041,-500.0,0.00020273,2]
[322000573,1712679039051,-500.0,0.00020273,2]
[322000575,1712679039060,-2755.41,0.00020273,2]
[322000577,1712679039069,-512.62,0.00020273,2]
[322000579,1712679039078,-500.0,0.00020273,2]
[322000581,1712679039088,-891.48,0.00020273,2]
[322000583,1712679039097,-500.0,0.00020273,2]
[322000585,1712679039105,-1444.85,0.00020273,2]
[322000587,1712679039114,-500.0,0.00020273,2]
[322000589,1712679039123,-1013.5,0.00020273,2]
[322000591,1712679039132,-1198.24,0.00020273,2]
[322000593,1712679039142,-751.45,0.00020273,2]
[322000595,1712679039151,-780.87,0.00020273,2]
[322000597,1712679039160,-2114.04,0.00020273,2]
[322000599,1712679039168,-500.0,0.00020273,2]
[322000601,1712679039177,-500.0,0.00020273,2]
[322000603,1712679039186,-988.15,0.00020273,2]
[322000605,1712679039195,-623.98,0.00020273,2]
[322000607,1712679039204,-1345.9,0.00020273,2]
[322000609,1712679039215,-5664.0145999,0.00020282,2]
[322000610,1712679039224,-3147.82800798,0.00020322,2]
[322000613,1712679039234,-4991.55345343,0.00020354,2]
[322000615,1712679039242,-442.0,0.00020357,2]
[322000617,1712679039254,-354.0,0.00020357,2]
[322000618,1712679039264,-214.0,0.00020357,2]
[322000620,1712679039273,-206.35448214,0.00020426,2]
[322000622,1712679039282,-7500.0,0.00020447,2]
[322000624,1712679039291,-167.2,0.00020466,2]
[322000626,1712679039301,-1001.5318234,0.000205,2]
[322000629,1712679039310,-150.0,0.000205,2]
[322000630,1712679039320,-300.0,0.000205,2]
[322000632,1712679039331,-150.0,0.000205,2]
[322000634,1712679039341,-4418.42195818,0.000205,2]
[322000636,1712679039351,-152.56523432,0.000205,2]
[322000638,1712679039361,-283.90494496,0.000205,2]
[322000640,1712679039370,-301.3450587,0.000205,2]
[322000643,1712679039380,-475.98397389,0.000205,3]
[322000645,1712679039389,-5439.43614802,0.000205,2]
[322000647,1712679039400,-560.0,0.0002052,2]
[322000648,1712679039410,-100.73191609,0.0002052,2]
[322000656,1712679039474,1726.97768715,0.00019125,2]
[322000658,1712679039487,-2432.04,0.00020272,2]
[322000661,1712679039502,-1166.03,0.00020272,2]
[322000663,1712679039513,-433.26808391,0.0002052,2]
[322000665,1712679039523,-2083.1583622,0.00020535,2]
[322000669,1712679039546,-339.49342103,0.00020272,2]
[322000671,1712679039557,-450.037073,0.00020272,2]
[322000673,1712679039569,-206.40950597,0.00020272,2]
[322000675,1712679039578,-2908.39509123,0.00020535,2]
[322000677,1712679039587,-5664.0145999,0.00020538,2]
[322000679,1712679039596,-2161.97101754,0.00020546,2]
[322000681,1712679039605,-639.42,0.00020546,2]
[322000683,1712679039615,-549.81,0.00020546,2]
[322000686,1712679039624,-47.53678536,0.00020546,2]
[322000688,1712679039635,-565.10321464,0.00020546,2]
[322000690,1712679039644,-941.89,0.00020546,2]
[322000692,1712679039653,-306.62678536,0.00020546,2]
[322000695,1712679039671,-704.2222557,0.00020546,2]
[322000698,1712679039682,-143.05095894,0.00020546,2]
[322000700,1712679039692,-595.31666253,0.00020546,2]
[322000704,1712679039704,-316.55333747,0.00020546,2]
[322000706,1712679039713,-500.0,0.00020546,2]
[322000709,1712679039722,-959.76,0.00020546,2]
[322000712,1712679039732,-914.05,0.00020546,2]
[322000715,1712679039741,-1091.67,0.00020546,2]
[322000718,1712679039750,-1155.4,0.00020546,2]
[322000722,1712679039761,-1896.61,0.00020546,2]
[322000724,1712679039770,-1029.41,0.00020546,2]
[322000728,1712679039780,-2736.04,0.00020546,2]
[322000731,1712679039789,-6138.33,0.00020546,2]
[322000734,1712679039799,-1705.06,0.00020546,2]
[322000737,1712679039808,-1542.46,0.00020546,2]
[322000740,1712679039816,-1283.86,0.00020546,2]
[322000743,1712679039826,-718.13,0.00020546,2]
[322000746,1712679039836,-500.0,0.00020546,2]
[322000749,1712679039846,-2082.51,0.00020546,2]
[322000752,1712679039856,-4959.41,0.00020546,2]
[322000755,1712679039866,-1553.58,0.00020546,2]
[322000757,1712679039875,-757.09,0.00020546,2]
[322000759,1712679039884,-784.9,0.00020546,2]
[322000761,1712679039894,-728.29747543,0.00020546,2]
[322000763,1712679039906,-44.45252457,0.00020546,2]
[322000765,1712679039915,-2060.58,0.00020546,2]
[322000767,1712679039924,-500.0,0.00020546,2]
[322000769,1712679039934,-604.19,0.00020546,2]
[322000771,1712679039943,-235.76303953,0.00020546,2]
[322000773,1712679039953,-1180.06,0.00020546,2]
[322000775,1712679039963,-500.0,0.00020546,2]
[322000777,1712679039972,-642.03,0.00020546,2]
[322000779,1712679039981,-500.0,0.00020546,2]
[322000781,1712679039990,-500.0,0.00020547,2]
[322000783,1712679040000,-500.0,0.00020547,2]
[322000785,1712679040010,-500.0,0.00020547,2]
[322000787,1712679040019,-500.0,0.00020547,2]
[322000788,1712679040029,-500.0,0.00020547,2]
[322000790,1712679040038,-500.0,0.00020547,2]
[322000792,1712679040047,-500.0,0.00020547,2]
[322000794,1712679040057,-211.02129363,0.00020547,2]
[322000796,1712679040066,-500.0,0.00020547,2]
[322000798,1712679040076,-382.24102014,0.00020547,2]
[322000801,1712679040096,-117.75897986,0.00020547,2]
[322000803,1712679040106,-500.0,0.00020547,2]
[322000805,1712679040115,-500.0,0.00020547,2]
[322000807,1712679040125,-329.45218519,0.00020547,2]
[322000809,1712679040137,-377.04781481,0.00020547,2]
[322000811,1712679040147,-500.0,0.00020547,2]
[322000813,1712679040157,-332.28994613,0.00020547,2]
[322000817,1712679040189,-2337.99,0.00020272,2]
[322000819,1712679040198,-3598.07,0.00020546,2]
[322000821,1712679040211,-167.71005387,0.00020547,2]
[322000822,1712679040223,-500.0,0.00020547,2]
[322000823,1712679040232,-500.0,0.00020547,2]
[322000824,1712679040241,-500.0,0.00020547,2]
[322000825,1712679040252,-500.0,0.00020547,2]
[322000826,1712679040263,-500.0,0.00020547,2]
[322000827,1712679040273,-500.0,0.00020547,2]
[322000828,1712679040282,-500.0,0.00020547,2]
[322000829,1712679040292,-500.0,0.00020547,2]
[322000830,1712679040301,-500.0,0.00020547,2]
[322000831,1712679040310,-500.0,0.00020547,2]
[322000832,1712679040319,-500.0,0.00020547,2]
[322000833,1712679040329,-629.67,0.00020547,2]
[322000834,1712679040340,-541.49,0.00020547,2]
[322000835,1712679040349,-500.0,0.00020547,2]
[322000836,1712679040359,-628.28969621,0.00020547,2]
[322000837,1712679040369,-500.0,0.00020547,2]
[322000838,1712679040379,-500.0,0.00020547,2]
[322000839,1712679040389,-500.0,0.00020547,2]
[322000840,1712679040399,-500.0,0.00020547,2]
[322000841,1712679040409,-500.0,0.00020547,2]
[322000842,1712679040419,-500.0,0.00020547,2]
[322000843,1712679040429,-382.58025992,0.00020547,2]
[322000845,1712679040442,-117.41974008,0.00020547,2]
[322000847,1712679040452,-500.0,0.00020547,2]
[322000849,1712679040463,-500.0,0.00020547,2]
[322000851,1712679040474,-732.3,0.00020547,2]
[322000853,1712679040484,-500.0,0.00020547,2]
[322000855,1712679040494,-500.0,0.00020547,2]
[322000856,1712679040504,-493.20471778,0.00020547,2]
[322000859,1712679040524,-500.0,0.00020547,2]
[322000860,1712679040535,-500.0,0.00020547,2]
[322000862,1712679040546,-500.0,0.00020547,2]
[322000864,1712679040557,-833.92,0.00020547,2]
[322000865,1712679040567,-500.0,0.00020547,2]
[322000866,1712679040585,-500.0,0.00020547,2]
[322000867,1712679040597,-500.0,0.00020547,2]
[322000868,1712679040609,-519.4,0.00020547,2]
[322000869,1712679040619,-500.0,0.00020547,2]
[322000870,1712679040630,-500.0,0.00020547,2]
[322000871,1712679040641,-500.0,0.00020547,2]
[322000872,1712679040651,-500.0,0.00020547,2]
[322000873,1712679040661,-500.0,0.00020547,2]
[322000874,1712679040670,-714.6,0.00020547,2]
[322000875,1712679040681,-545.1,0.00020547,2]
[322000876,1712679040691,-500.0,0.00020547,2]
[322000877,1712679040701,-500.0,0.00020547,2]
[322000878,1712679040710,-500.0,0.00020547,2]
[322000879,1712679040719,-500.0,0.00020547,2]
[322000880,1712679040729,-500.0,0.00020547,2]
[322000881,1712679040738,-500.0,0.00020547,2]
[322000882,1712679040747,-500.0,0.00020547,2]
[322000883,1712679040756,-500.0,0.00020547,2]
[322000884,1712679040768,-500.0,0.00020547,2]
[322000885,1712679040777,-633.56,0.00020547,2]
[322000886,1712679040786,-500.0,0.00020547,2]
[322000887,1712679040796,-500.0,0.00020547,2]
[322000888,1712679040805,-114.49554214,0.00020547,2]
[322000889,1712679040818,-385.50445786,0.00020547,2]
[322000890,1712679040828,-500.0,0.00020547,2]
[322000891,1712679040837,-500.0,0.00020547,2]
[322000892,1712679040846,-500.0,0.00020547,2]
[322000893,1712679040855,-570.41,0.00020547,2]
[322000894,1712679040864,-500.0,0.00020547,2]
[322000895,1712679040873,-781.68,0.00020547,2]
[322000896,1712679040883,-597.51,0.00020547,2]
[322000897,1712679040893,-500.0,0.00020547,2]
[322000898,1712679040902,-135.39554214,0.00020547,2]
[322000899,1712679041029,500.0,0.00019178,2]
[322000900,1712679041143,1311.7,0.00019178,2]
[322000901,1712679041181,-177.82696932,0.000205,2]
[322000902,1712679041191,-995.94,0.00020546,2]
[322000903,1712679041200,-2337.99,0.00020546,2]
[322000904,1712679041211,-364.60445786,0.00020547,2]
[322000905,1712679041222,-500.0,0.00020547,2]
[322000906,1712679041231,-596.31,0.00020547,2]
[322000907,1712679041240,-500.0,0.00020547,2]
[322000908,1712679041250,-161.09357878,0.00020547,2]
[322000909,1712679041265,-338.90642122,0.00020547,2]
[322000910,1712679041274,-500.0,0.00020547,2]
[322000911,1712679041284,-500.0,0.00020547,2]
[322000912,1712679041295,-426.09357878,0.00020547,2]
[322000913,1712679041306,-73.90642122,0.00020547,2]
[322000914,1712679041315,-340.46066294,0.00020547,2]
[322000915,1712679041326,-159.53933706,0.00020547,2]
[322000916,1712679041335,-193.79516407,0.00020547,2]
[322000917,1712679041346,-307.70483593,0.00020547,2]
[322000918,1712679041354,-749.57,0.00020547,2]
[322000919,1712679041364,-500.0,0.00020547,2]
[322000920,1712679041373,-500.0,0.00020547,2]
[322000921,1712679041381,-526.78,0.00020547,2]
[322000922,1712679041391,-500.0,0.00020547,2]
[322000923,1712679041400,-193.68,0.00020547,2]
[322000924,1712679041409,-500.0,0.00020547,2]
[322000925,1712679041418,-500.0,0.00020547,2]
[322000926,1712679041427,-675.68,0.00020547,2]
[322000927,1712679041437,-500.0,0.00020547,2]
[322000928,1712679041447,-948.35,0.00020547,2]
[322000929,1712679041456,-500.0,0.00020547,2]
[322000930,1712679041468,-500.0,0.00020547,2]
[322000931,1712679041477,-500.0,0.00020547,2]
[322000932,1712679041487,-500.0,0.00020547,2]
[322000933,1712679041495,-500.0,0.00020547,2]
[322000934,1712679041505,-500.0,0.00020547,2]
[322000935,1712679041516,-709.88,0.00020547,2]
[322000936,1712679041525,-500.0,0.00020547,2]
[322000937,1712679041534,-500.0,0.00020547,2]
[322000938,1712679041544,-500.0,0.00020547,2]
[322000939,1712679041553,-588.57,0.00020547,2]
[322000940,1712679041561,-500.0,0.00020547,2]
[322000941,1712679041571,-500.0,0.00020547,2]
[322000942,1712679041580,-2273.02,0.00020547,2]
[322000943,1712679041589,-500.0,0.00020547,2]
[322000944,1712679041599,-767.64,0.00020547,2]
[322000945,1712679041608,-500.0,0.00020547,2]
[322000946,1712679041617,-500.0,0.00020547,2]
[322000947,1712679041627,-558.36,0.00020547,2]
[322000948,1712679041636,-500.0,0.00020547,2]
[322000949,1712679041645,-1069.26,0.00020547,2]
[322000950,1712679041656,-2239.58,0.00020547,2]
[322000951,1712679041666,-500.0,0.00020547,2]
[322000952,1712679041675,-500.0,0.00020547,2]
[322000953,1712679041684,-671.41,0.00020547,2]
[322000954,1712679041693,-500.0,0.00020547,2]
[322000955,1712679041702,-562.78,0.00020547,2]
[322000956,1712679041712,-578.22,0.00020547,2]
[322000957,1712679041725,-856.96,0.00020547,2]
[322000958,1712679041735,-500.0,0.00020547,2]
[322000959,1712679041744,-500.0,0.00020547,2]
[322000960,1712679041752,-7444.99249317,0.00020547,2]
[322000961,1712679041766,-5406.93750683,0.00020547,2]
[322000962,1712679041775,-500.0,0.00020547,2]
[322000963,1712679041784,-755.14,0.00020547,2]
[322000964,1712679041794,-500.0,0.00020547,2]
[322000965,1712679041804,-146.20873951,0.00020547,2]
[322000966,1712679041815,-515.02126049,0.00020547,2]
[322000967,1712679041824,-565.6,0.00020547,2]
[322000968,1712679041834,-989.27,0.00020547,2]
[322000969,1712679041843,-1539.95,0.00020547,2]
[322000970,1712679041853,-500.0,0.00020547,2]
[322000971,1712679041864,-500.0,0.00020547,2]
[322000972,1712679041874,-500.0,0.00020547,2]
[322000973,1712679041883,-500.0,0.00020547,2]
[322000974,1712679041893,-734.13,0.00020547,2]
[322000975,1712679041902,-356.02873951,0.00020547,2]
[322000976,1712679041914,-424.88308538,0.00020547,2]
[322000977,1712679041925,-1546.60817511,0.00020547,2]
[322000978,1712679041934,-847.96,0.00020547,2]
[322000979,1712679041943,-553.06,0.00020547,2]
[322000980,1712679041953,-500.0,0.00020547,2]
[322000981,1712679041963,-500.0,0.00020547,2]
[322000982,1712679041972,-1329.06132489,0.00020547,2]
[322000983,1712679041983,-104.17867511,0.00020547,2]
[322000984,1712679041993,-1140.09,0.00020547,2]
[322000985,1712679042002,-252.43731973,0.00020547,2]
[322000986,1712679042015,-275.46268027,0.00020547,2]
[322000987,1712679042024,-500.0,0.00020547,2]
[322000988,1712679042033,-2094.76,0.00020547,2]
[322000989,1712679042042,-1254.14,0.00020547,2]
[322000990,1712679042051,-573.69,0.00020547,2]
[322000991,1712679042063,-500.0,0.00020547,2]
[322000992,1712679042072,-500.0,0.00020547,2]
[322000993,1712679042081,-500.0,0.00020547,2]
[322000994,1712679042090,-1102.63,0.00020547,2]
[322000995,1712679042099,-500.0,0.00020547,2]
[322000996,1712679042108,-500.0,0.00020547,2]
[322000997,1712679042117,-4197.27,0.00020547,2]
[322000998,1712679042127,-1521.91755988,0.00020547,2]
[322000999,1712679042139,-49.28244012,0.00020547,2]
[322001000,1712679042148,-500.0,0.00020547,2]
[322001001,1712679042157,-127.87206087,0.00020547,2]
[322001002,1712679042168,-372.12793913,0.00020547,2]
[322001003,1712679042178,-638.11,0.00020547,2]
[322001004,1712679042187,-1418.55713309,0.00020547,2]
[322001005,1712679042198,-251.32750497,0.00020547,2]
[322001006,1712679042219,-593.54536194,0.00020547,2]
[322001007,1712679042228,-764.43,0.00020547,2]
[322001008,1712679042237,-500.0,0.00020547,2]
[322001009,1712679042246,-738.13,0.00020547,2]
[322001010,1712679042257,-500.0,0.00020547,2]
[322001011,1712679042268,-5736.27,0.00020547,2]
[322001012,1712679042277,-2078.67,0.00020547,2]
[322001013,1712679042286,-1072.64,0.00020547,2]
[322001014,1712679042295,-500.0,0.00020547,2]
[322001015,1712679042304,-499.11172533,0.00020547,2]
[322001016,1712679042313,-3248.05,0.00020547,2]
[322001017,1712679042323,-851.69,0.00020547,2]
[322001018,1712679042332,-500.0,0.00020547,2]
[322001019,1712679042341,-5439.39,0.00020547,2]
[322001020,1712679042350,-500.0,0.00020547,2]
[322001021,1712679042359,-1506.11,0.00020547,2]
[322001022,1712679042368,-500.0,0.00020547,2]
[322001023,1712679042377,-2992.86,0.00020547,2]
[322001024,1712679042386,-647.11,0.00020547,2]
[322001025,1712679042395,-651.11,0.00020547,2]
[322001026,1712679042405,-1260.97566914,0.00020547,2]
[322001027,1712679042417,-1697.01708535,0.00020547,2]
[322001028,1712679042428,-17670.10724551,0.00020547,2]
[322001029,1712679042437,-500.0,0.00020547,2]
[322001030,1712679042446,-1069.58,0.00020547,2]
[322001031,1712679042455,-722.97,0.00020547,2]
[322001032,1712679042464,-500.0,0.00020547,2]
[322001033,1712679042474,-1657.13,0.00020547,2]
[322001034,1712679042483,-1939.07,0.00020547,2]
[322001035,1712679042492,-2952.71,0.00020547,2]
[322001036,1712679042501,-500.0,0.00020547,2]
[322001037,1712679042512,-500.0,0.00020547,2]
[322001038,1712679042521,-930.45,0.00020547,2]
[322001039,1712679042531,-593.53,0.00020547,2]
[322001040,1712679042540,-7894.27,0.00020547,2]
[322001041,1712679042549,-500.0,0.00020547,2]
[322001042,1712679042558,-500.0,0.00020547,2]
[322001043,1712679042567,-500.0,0.00020547,2]
[322001044,1712679042576,-500.0,0.00020547,2]
[322001045,1712679042691,-3126.09,0.00020547,2]
[322001046,1712679042711,-500.0,0.00020547,2]
[322001047,1712679042721,-665.84,0.00020547,2]
[322001049,1712679042732,-1607.35,0.00020547,2]
[322001050,1712679042742,-500.0,0.00020547,2]
[322001051,1712679042751,-768.22,0.00020547,2]
[322001052,1712679042762,-624.95,0.00020547,2]
[322001053,1712679042773,-908.09,0.00020547,2]
[322001054,1712679042783,-500.0,0.00020547,2]
[322001055,1712679042793,-1138.52,0.00020547,2]
[322001056,1712679042803,-500.0,0.00020547,2]
[322001057,1712679042813,-2538.08,0.00020547,2]
[322001058,1712679042822,-877.67,0.00020547,2]
[322001059,1712679042832,-1358.03,0.00020547,2]
[322001060,1712679042842,-1488.04,0.00020547,2]
[322001061,1712679042852,-687.56,0.00020547,2]
[322001062,1712679042861,-1161.78,0.00020547,2]
[322001063,1712679042871,-971.84,0.00020547,2]
[322001064,1712679042880,-1093.14,0.00020547,2]
[322001065,1712679042890,-500.0,0.00020547,2]
[322001066,1712679042900,-3305.56275471,0.00020547,2]
[322001067,1712679042914,-268.38,0.00020547,2]
[322001068,1712679042997,1311.7,0.00019452,2]
[322001069,1712679043027,-638.54724529,0.00020547,2]
[322001070,1712679043038,-500.0,0.00020547,2]
[322001071,1712679043048,-771.53,0.00020547,2]
[322001072,1712679043058,-943.54,0.00020547,2]
[322001073,1712679043069,-906.15,0.00020547,2]
[322001074,1712679043078,-500.0,0.00020547,2]
[322001075,1712679043087,-500.0,0.00020547,2]
[322001076,1712679043098,-500.0,0.00020547,2]
[322001077,1712679043107,-812.14,0.00020547,2]
[322001078,1712679043117,-1238.17,0.00020547,2]
[322001079,1712679043126,-500.0,0.00020547,2]
[322001080,1712679043135,-500.0,0.00020547,2]
[322001081,1712679043144,-756.29,0.00020547,2]
[322001082,1712679043154,-13148.44,0.00020547,2]
[322001083,1712679043164,-500.0,0.00020547,2]
[322001084,1712679043174,-2186.99,0.00020547,2]
[322001085,1712679043184,-2956.31,0.00020547,2]
[322001086,1712679043193,-1571.51,0.00020547,2]
[322001087,1712679043203,-462.9796244,0.00020547,2]
[322001088,1712679043514,-37.0203756,0.00020547,2]
[322001089,1712679043524,-599.7296244,0.00020547,2]
[322001093,1712679043548,-500.0,0.00020272,2]
[322001095,1712679043559,-341.2303756,0.00020547,2]
[322001097,1712679043568,-500.0,0.00020547,2]
[322001099,1712679043577,-1827.09,0.00020547,2]
[322001101,1712679043586,-99.6796244,0.00020547,2]
[322001112,1712679043790,1311.7,0.00019726,2]
[322001113,1712679043952,1311.7,0.0002,2]
[322001114,1712679043987,500.0,0.00019178,2]
[322001115,1712679044040,500.0,0.00019178,2]
[322001116,1712679044124,431.77,0.00019452,2]
[322001117,1712679044182,-366.976,0.00020173,2]
[322001118,1712679044193,-1198.68,0.00020173,2]
[322001119,1712679044231,-804.29,0.00020173,2]
[322001120,1712679044245,-641.02598262,0.00020173,2]
[322001121,1712679044258,-9314.7,0.00020173,2]
[322001122,1712679044270,-667.08562483,0.00020173,2]
[322001123,1712679044282,-756.75954002,0.00020173,2]
[322001124,1712679044293,-1064.36232487,0.00020173,2]
[322001125,1712679044311,-1750.64816397,0.00020173,2]
[322001126,1712679044322,-2330.24486889,0.00020173,2]
[322001127,1712679044333,-146218.5680549,0.00020173,2]
[322001128,1712679044364,-329.79113385,0.00020173,2]
[322001129,1712679044376,-432.34833249,0.00020173,2]
[322001130,1712679045243,500.0,0.00019178,2]
[322001131,1712679045345,172.27,0.00019452,2]
[322001132,1712679045426,603.29,0.00019178,2]
[322001143,1712679045719,-2071.930156,0.00020173,2]
[322001203,1712679046336,-4336.42436732,0.00020173,2]
[322001206,1712679046349,-37692.07895024,0.00020173,2]
[322001208,1712679046359,-824.52,0.00020263,3]
[322001210,1712679046368,-500.0,0.00020272,2]
[322001212,1712679046378,-1311.7,0.00020273,2]
[322001214,1712679046387,-500.0,0.00020546,2]
[322001216,1712679046396,-500.0,0.00020546,2]
[322001218,1712679046406,-500.0,0.00020546,2]
[322001220,1712679046416,-535.10090823,0.00020546,2]
[322001222,1712679046426,-500.0,0.00020546,2]
[322001224,1712679046435,-500.0,0.00020546,2]
[322001226,1712679046444,-500.0,0.00020546,2]
[322001228,1712679046454,-500.0,0.00020546,2]
[322001230,1712679046463,-500.0,0.00020546,2]
[322001231,1712679046472,-500.0,0.00020546,2]
[322001233,1712679046482,-500.0,0.00020546,2]
[322001235,1712679046491,-500.0,0.00020546,2]
[322001237,1712679046500,-500.0,0.00020546,2]
[322001238,1712679046509,-500.0,0.00020546,2]
[322001239,1712679046520,-429.1503756,0.00020547,2]
[322001240,1712679046530,-500.0,0.00020547,2]
[322001241,1712679046539,-1461.13,0.00020547,2]
[322001242,1712679046549,-4206.05,0.00020547,2]
[322001243,1712679046557,-1772.99,0.00020547,2]
[322001244,1712679046566,-500.0,0.00020547,2]
[322001245,1712679046576,-500.0,0.00020547,2]
[322001246,1712679046585,-500.0,0.00020547,2]
[322001247,1712679046594,-500.0,0.00020547,2]
[322001248,1712679046606,-1006.37974489,0.00020547,2]
[322001249,1712679046618,-2304.58864986,0.00020547,2]
[322001250,1712679046630,-2436.47878297,0.00020547,2]
[322001251,1712679046662,-5779.57282228,0.00020547,2]
[322001252,1712679046671,-2906.55,0.00020547,2]
[322001253,1712679046681,-500.0,0.00020547,2]
[322001254,1712679046690,-1211.1,0.00020547,2]
[322001255,1712679046699,-152.76316181,0.00020547,2]
[322001256,1712679046711,-347.23683819,0.00020547,2]
[322001257,1712679046720,-3002.38,0.00020547,2]
[322001258,1712679046729,-1001.59,0.00020547,2]
[322001259,1712679046739,-1187.63,0.00020547,2]
[322001260,1712679046748,-500.0,0.00020547,2]
[322001261,1712679046757,-500.0,0.00020547,2]
[322001262,1712679046767,-2755.41,0.00020547,2]